bitfinex/quotes_SOLUSD_20260310
["timestamp","ask_amount","ask_price","bid_price","bid_amount"]
[1773161935694,3.37242299,88.447,88.412,3.97801003]
[1773161936893,14.6688277,88.446,88.414,3.97801003]
[1773161937397,3.3624939,88.445,88.414,3.97801003]
[1773161939211,3.35278791,88.443,88.416,3.97801003]
[1773161939415,3.35278791,88.439,88.416,3.97801003]
[1773161940819,3.35278791,88.439,88.41,11.31090169]
[1773161941194,11.30735656,88.438,88.411,3.97801003]
[1773161941393,3.34330786,88.437,88.411,3.97801003]
[1773161943313,3.33405946,88.435,88.405,3.97801003]
[1773161944215,3.92957677,88.43,88.405,3.97801003]
[1773161944605,3.32951865,88.419,88.393,3.97801003]
[1773161944811,3.32951865,88.419,88.381,3.97801003]
[1773161945627,3.32505127,88.425,88.391,3.97801003]
[1773161945807,3.92957677,88.42,88.391,3.97801003]
[1773161946207,3.32062816,88.409,88.384,3.97801003]
[1773161946601,3.92957677,88.41,88.384,3.97801003]
[1773161951331,11.31106561,88.409,88.386,3.97801003]
[1773161953033,3.29112176,88.408,88.386,3.97801003]
[1773161953235,11.31106561,88.409,88.386,3.97801003]
[1773161954034,11.31106561,88.409,88.388,3.97801003]
[1773161955617,11.31106561,88.409,88.389,15.29163502]
[1773161955826,11.31106561,88.409,88.39,3.97801003]
[1773161957021,3.92957677,88.41,88.39,3.97801003]
[1773161958935,15.24054159,88.41,88.39,3.97801003]
[1773161959140,3.2512825,88.409,88.384,3.97801003]
[1773161960321,3.23863685,88.407,88.384,3.97801003]
[1773161960832,3.23863685,88.407,88.343,61.8]
[1773161960833,3.23863685,88.407,88.378,3.91340278]
[1773161961140,7.16202083,88.4,88.378,3.91340278]
[1773161961317,39.58917744,88.408,88.361,28.29274191]
[1773161961318,3.23244406,88.407,88.38,3.91340278]
[1773161962720,3.22628554,88.419,88.382,3.91340278]
[1773161962920,3.92957677,88.41,88.382,3.91340278]
[1773161963524,3.22019037,88.409,88.382,3.91340278]
[1773161964616,1.41361138,88.426,88.391,3.91340278]
[1773161964836,3.92957677,88.41,88.385,3.91340278]
[1773161965031,3.20823499,88.409,88.385,3.91340278]
[1773161967142,11.31119355,88.408,88.387,3.91340278]
[1773161967844,14.50776417,88.408,88.387,3.91340278]
[1773161968724,11.31119355,88.408,88.387,3.91340278]
[1773161970326,11.31119355,88.408,88.389,3.91340278]
[1773161970676,3.92957677,88.41,88.389,3.91340278]
[1773161971237,3.17406338,88.408,88.389,3.91340278]
[1773161971955,3.92957677,88.41,88.389,3.91340278]
[1773161972253,18.40914039,88.41,88.389,3.91340278]
[1773161973252,3.92957677,88.4,88.379,3.91340278]
[1773161973753,3.16319811,88.406,88.379,3.91340278]
[1773161973953,15.24054367,88.41,88.379,3.91340278]
[1773161974245,3.15785737,88.409,88.381,3.91340278]
[1773161977639,3.14224556,88.407,88.381,3.91340278]
[1773161977935,3.14224556,88.407,88.383,3.91340278]
[1773161979258,3.92957677,88.42,88.385,3.91340278]
[1773161981055,15.23929935,88.42,88.387,3.91340278]
[1773161981231,11.30644943,88.446,88.411,3.91340278]
[1773161981557,3.92957677,88.44,88.411,3.91340278]
[1773161983238,11.30722871,88.439,88.413,3.91340278]
[1773161984557,3.10772145,88.438,88.405,3.91340278]
[1773161984739,3.10772145,88.419,88.399,3.91340278]
[1773161984939,3.92957677,88.42,88.399,3.91340278]
[1773161985643,3.92957677,88.42,88.4,11.31221719]
[1773161985849,3.92957677,88.42,88.4,15.22561997]
[1773161988261,3.92957677,88.43,88.401,3.78161093]
[1773161989254,3.07595015,88.437,88.401,3.78161093]
[1773161990254,14.37920061,88.436,88.402,11.31196126]
[1773161990444,1.41327574,88.447,88.402,11.31196126]
[1773161990655,3.07158833,88.449,88.421,3.75234648]
[1773161992256,11.30607814,88.448,88.422,11.30940263]
[1773161992448,6.99234207,88.46,88.423,3.75234648]
[1773161992645,3.06305364,88.46,88.423,3.75234648]
[1773161993462,3.05885087,88.449,88.423,3.75234648]
[1773161993958,3.92928843,88.46,88.423,3.75234648]
[1773161994354,11.30467222,88.459,88.425,3.75234648]
[1773161994553,14.35937321,88.459,88.425,3.75234648]
[1773161995665,3.05059088,88.458,88.425,3.75234648]
[1773161995841,3.92928843,88.45,88.425,3.75234648]
[1773161997652,3.92928843,88.44,88.415,3.75234648]
[1773161997849,3.04252471,88.448,88.415,3.75234648]
[1773161998379,3.03861173,88.439,88.411,11.31080974]
[1773161998678,3.03861173,88.439,88.412,3.75234648]
[1773161999045,3.92928843,88.44,88.412,3.75234648]
[1773161999972,3.92928843,88.44,88.414,3.75234648]
[1773162000167,3.03085599,88.446,88.409,3.75234648]
[1773162000474,3.03085599,88.444,88.384,3.75234648]
[1773162000643,3.93166465,88.42,88.384,3.75234648]
[1773162002151,11.30978635,88.419,88.385,11.31413701]
[1773162002347,11.30978635,88.419,88.386,3.75234648]
[1773162002859,3.01954015,88.409,88.371,3.75234648]
[1773162003055,39.58425224,88.419,88.362,11.317082]
[1773162003056,3.01954015,88.389,88.364,3.75234648]
[1773162003745,96.13318403,88.419,88.362,11.317082]
[1773162003746,3.93166465,88.41,88.371,3.75234648]
[1773162004149,1.41341957,88.438,88.363,3.75234648]
[1773162004150,11.31170535,88.404,88.363,3.75234648]
[1773162004362,3.93166465,88.39,88.363,3.75234648]
[1773162004947,3.01585389,88.399,88.363,3.75234648]
[1773162005150,3.93166465,88.41,88.371,3.75234648]
[1773162005470,15.24272295,88.41,88.371,3.75234648]
[1773162005683,3.93166465,88.4,88.371,3.75234648]
[1773162006058,43.52006714,88.41,88.371,3.75234648]
[1773162006248,15.24272295,88.41,88.373,3.75234648]
[1773162006851,4.82477569,88.475,88.372,11.31580138]
[1773162006852,3.93166465,88.43,88.391,3.75234648]
[1773162007852,3.93166465,88.42,88.391,3.75234648]
[1773162008364,11.30942309,88.422,88.393,3.75234648]
[1773162009661,11.30892853,88.426,88.393,3.75234648]
[1773162009967,3.93166465,88.43,88.401,3.75234648]
[1773162010761,3.93166465,88.45,88.411,3.75234648]
[1773162010968,2.99118923,88.449,88.411,3.75234648]
[1773162011168,3.93166465,88.43,88.403,3.75234648]
[1773162012154,15.24014533,88.43,88.404,11.31170535]
[1773162012358,15.24014533,88.43,88.405,3.75234648]
[1773162012559,11.30789572,88.434,88.405,3.75234648]
[1773162013071,3.93166465,88.43,88.405,3.75234648]
[1773162016763,11.30850739,88.429,88.406,11.31144944]
[1773162017362,11.30850739,88.429,88.407,3.75234648]
[1773162018971,11.30850739,88.429,88.409,3.75234648]
[1773162020186,14.2467592,88.439,88.409,3.75234648]
[1773162021697,11.30722871,88.439,88.411,3.59745469]
[1773162022372,3.93166465,88.43,88.406,3.59745469]
[1773162023208,2.92371723,88.429,88.406,3.59745469]
[1773162023478,2.92371723,88.438,88.406,3.59745469]
[1773162024681,3.93166465,88.44,88.394,3.59745469]
[1773162024682,2.91855023,88.419,88.394,3.59745469]
[1773162025261,2.91345956,88.426,88.394,3.59745469]
[1773162025666,3.93166465,88.42,88.394,3.59745469]
[1773162026559,14.21820772,88.419,88.395,3.59745469]
[1773162027874,1.41324379,88.449,88.397,3.59745469]
[1773162027875,6.83021018,88.43,88.397,3.59745469]
[1773162028177,2.89854553,88.429,88.397,3.59745469]
[1773162028564,3.93166465,88.44,88.401,3.59745469]
[1773162028780,3.93166465,88.43,88.401,3.59745469]
[1773162029661,3.93166465,88.42,88.401,3.59745469]
[1773162029870,11.30966353,88.42,88.401,3.59745469]
[1773162030485,11.30850739,88.429,88.403,3.59745469]
[1773162030989,2.88414118,88.419,88.395,3.59745469]
[1773162031592,2.88414118,88.419,88.322,12.52991001]
[1773162031593,2.88414118,88.409,88.388,3.59745469]
[1773162032500,2.87944337,88.399,88.361,3.59745469]
[1773162032670,3.93166465,88.38,88.361,3.59745469]
[1773162032870,3.93166465,88.4,88.361,3.59745469]
[1773162033066,6.80647383,88.4,88.361,3.59745469]
[1773162033266,3.93166465,88.39,88.361,3.59745469]
[1773162033467,6.80647383,88.39,88.361,3.59745469]
[1773162033668,3.93166465,88.39,88.361,3.59745469]
[1773162034693,15.24519615,88.39,88.363,3.59745469]
[1773162037100,15.24519615,88.39,88.359,3.59745469]
[1773162037101,3.93166465,88.38,88.359,3.59745469]
[1773162037305,2.85675206,88.369,88.336,11.32033533]
[1773162037595,2.85675206,88.369,88.337,3.59745469]
[1773162037596,3.93166465,88.36,88.337,3.59745469]
[1773162037782,3.93166465,88.37,88.337,3.59745469]
[1773162038390,2.85241746,88.369,88.337,3.59745469]
[1773162038777,11.31631359,88.368,88.338,11.32015667]
[1773162038978,11.31631359,88.368,88.339,3.59745469]
[1773162040205,3.93166465,88.35,88.331,3.59745469]
[1773162040875,11.31759433,88.358,88.331,14.91850845]
[1773162041193,11.31759433,88.358,88.332,3.59745469]
[1773162042600,3.93166465,88.36,88.332,3.59745469]
[1773162042803,3.93166465,88.37,88.332,3.59745469]
[1773162042988,6.76296509,88.38,88.343,3.59745469]
[1773162043295,3.93166465,88.37,88.343,3.59745469]
[1773162044398,3.93166465,88.37,88.345,3.59745469]
[1773162046192,11.31618554,88.369,88.345,3.59745469]
[1773162047299,3.93166465,88.37,88.347,3.5593093]
[1773162047494,2.81133797,88.38,88.347,3.5593093]
[1773162047495,3.93166465,88.38,88.347,3.5593093]
[1773162047694,3.93166465,88.38,88.346,11.31913159]
[1773162047695,3.93166465,88.39,88.351,3.5593093]
[1773162048680,11.31236654,88.399,88.361,3.5593093]
[1773162048998,3.93166465,88.4,88.346,39.61696058]
[1773162048999,3.93166465,88.4,88.371,3.5593093]
[1773162049604,3.93166465,88.4,88.333,45.28298479]
[1773162049605,2.7998623,88.389,88.36,3.75509542]
[1773162049991,3.93166465,88.39,88.36,3.75509542]
[1773162050906,11.31362499,88.389,88.363,3.75509542]
[1773162051700,3.93166465,88.4,88.371,3.75509542]
[1773162052812,3.93166465,88.4,88.373,3.75509542]
[1773162053607,14.10020944,88.407,88.373,3.75509542]
[1773162054005,14.09302096,88.407,88.373,3.75509542]
[1773162054193,3.9329023,88.4,88.373,3.75509542]
[1773162055407,2.77806147,88.398,88.373,3.75509542]
[1773162055997,2.77806147,88.398,88.374,3.75509542]
[1773162056196,11.31234516,88.399,88.374,3.75509542]
[1773162058591,11.31234516,88.399,88.375,11.31541725]
[1773162058785,11.31234516,88.399,88.376,3.75509542]
[1773162059203,11.31173332,88.404,88.376,3.75509542]
[1773162059707,3.9329023,88.4,88.37,11.31594834]
[1773162060012,2.76106325,88.398,88.37,3.75509542]
[1773162060224,2.76106325,88.389,88.365,11.31662364]
[1773162060400,2.76106325,88.396,88.366,3.75509542]
[1773162061020,3.69383402,88.43,88.36,3.9329023]
[1773162061021,3.5681389,88.429,88.391,3.75509542]
[1773162061193,3.5681389,88.419,88.391,3.75509542]
[1773162062299,3.9329023,88.43,88.391,3.75509542]
[1773162062694,7.5010412,88.43,88.391,3.75509542]
[1773162062898,3.5681389,88.429,88.391,3.75509542]
[1773162063416,3.9329023,88.43,88.393,3.75509542]
[1773162063709,3.9329023,88.43,88.401,3.75509542]
[1773162064023,3.9329023,88.44,88.411,3.75509542]
[1773162064219,3.9329023,88.46,88.431,3.75509542]
[1773162064518,3.9329023,88.44,88.411,3.75509542]
[1773162065029,3.5681389,88.439,88.411,3.75509542]
[1773162065506,3.5681389,88.439,88.412,11.3106818]
[1773162065706,3.5681389,88.439,88.413,3.75509542]
[1773162065914,3.9329023,88.44,88.413,3.75509542]
[1773162066806,11.30722871,88.439,88.413,3.75509542]
[1773162068124,11.30722871,88.439,88.415,3.75509542]
[1773162071503,11.30722871,88.439,88.417,3.75509542]
[1773162071706,3.5681389,88.457,88.421,3.75509542]
[1773162073518,3.5681389,88.458,88.43,3.9329023]
[1773162073819,3.5681389,88.458,88.423,3.75509542]
[1773162075330,11.30467222,88.459,88.431,3.75509542]
[1773162075623,11.30418453,88.463,88.433,3.75509542]
[1773162076006,3.5681389,88.449,88.412,3.75509542]
[1773162076204,3.5681389,88.439,88.401,3.75509542]
[1773162076609,3.5681389,88.439,88.321,12.52991001]
[1773162076610,3.5681389,88.429,88.391,3.75509542]
[1773162076813,3.5681389,88.419,88.391,3.75509542]
[1773162077206,1.41340358,88.439,88.377,3.75509542]
[1773162077207,3.5681389,88.399,88.377,3.75509542]
[1773162077922,11.31247313,88.398,88.377,3.75509542]
[1773162078619,11.31247313,88.398,88.377,15.07016508]
[1773162079131,11.31247313,88.398,88.378,3.75509542]
[1773162080409,3.47745357,88.397,88.373,11.31561136]
[1773162080913,3.47745357,88.397,88.374,3.63591752]
[1773162081728,3.47745357,88.397,88.369,3.63591752]
[1773162081934,11.31234516,88.399,88.371,3.63591752]
[1773162082317,3.47745357,88.411,88.373,3.63591752]
[1773162082632,1.4135794,88.428,88.373,3.63591752]
[1773162082633,3.47745357,88.399,88.373,3.63591752]
[1773162083010,3.47745357,88.407,88.373,3.63591752]
[1773162083605,11.31122048,88.408,88.373,3.63591752]
[1773162083806,3.47745357,88.416,88.372,11.31580138]
[1773162083807,11.31039217,88.415,88.381,3.63591752]
[1773162084010,3.9329023,88.42,88.381,3.63591752]
[1773162084212,3.69383402,88.45,88.411,3.63591752]
[1773162084213,3.47745357,88.447,88.411,3.63591752]
[1773162084520,11.3063338,88.446,88.413,3.63591752]
[1773162085027,3.9329023,88.44,88.413,3.63591752]
[1773162085437,11.30579337,88.451,88.421,3.63591752]
[1773162086531,3.47745357,88.458,88.423,3.63591752]
[1773162087717,3.9329023,88.45,88.423,3.63591752]
[1773162088335,3.47745357,88.458,88.423,3.63591752]
[1773162088534,14.78135906,88.465,88.431,3.63591752]
[1773162088918,11.30275561,88.474,88.441,3.63591752]
[1773162089338,11.30224651,88.478,88.441,3.63591752]
[1773162090724,11.30224651,88.478,88.451,3.63591752]
[1773162091240,0.2,88.49,88.483,3.63591752]
[1773162091241,1e-08,88.49,88.483,3.63591752]
[1773162091423,28.47331966,88.484,88.483,3.63591752]
[1773162091626,25.42462621,88.484,88.47,3.9329023]
[1773162091924,3.47745357,88.483,88.45,3.9329023]
[1773162092129,3.47745357,88.483,88.45,7.38923651]
[1773162092722,3.47745357,88.482,88.452,3.45633421]
[1773162093433,11.30163713,88.483,88.422,3.45458712]
[1773162093434,3.47745357,88.469,88.422,3.45458712]
[1773162093646,3.47745357,88.469,88.384,45.2565913]
[1773162093647,3.47745357,88.459,88.424,3.45458712]
[1773162095944,14.78225358,88.458,88.426,3.44951491]
[1773162096242,3.47745357,88.458,88.43,3.9329023]
[1773162096641,3.47745357,88.476,88.441,3.44951491]
[1773162096847,3.47745357,88.476,88.45,3.9329023]
[1773162097043,11.30198915,88.48,88.451,3.44338129]
[1773162098139,3.47745357,88.479,88.443,3.43731812]
[1773162098934,3.47745357,88.469,88.424,3.4313246]
[1773162099147,3.47745357,88.459,88.43,3.9329023]
[1773162099427,3.9329023,88.47,88.431,3.4313246]
[1773162099641,3.47745357,88.469,88.44,7.3642269]
[1773162100550,14.78097574,88.468,88.441,11.30697301]
[1773162101237,3.47745357,88.467,88.441,11.30697301]
[1773162101438,11.30292816,88.473,88.442,3.41954328]
[1773162102541,14.78038173,88.473,88.442,3.41954328]
[1773162102851,3.47745357,88.472,88.443,11.30671732]
[1773162103751,11.30211688,88.479,88.443,11.30671732]
[1773162103752,3.47745357,88.469,88.443,11.30671732]
[1773162106235,11.30251164,88.476,88.451,3.39125384]
[1773162106439,11.30224462,88.478,88.451,3.39125384]
[1773162107339,3.49897595,88.469,88.443,11.30671732]
[1773162107640,3.49897595,88.469,88.434,11.30786801]
[1773162108353,3.49897595,88.467,88.435,3.37504811]
[1773162108652,25.42462621,88.484,88.451,3.37504811]
[1773162108827,3.49897595,88.496,88.471,3.36976982]
[1773162109155,3.4216695,88.504,88.471,3.36976982]
[1773162110647,0.2,88.51,88.481,3.35939442]
[1773162110951,3.4216695,88.509,88.481,3.35939442]
[1773162111329,3.4216695,88.509,88.48,3.9329023]
[1773162111527,3.4216695,88.509,88.48,7.28719822]
[1773162112839,3.4216695,88.509,88.481,11.30186141]
[1773162113044,0.2,88.51,88.482,3.34427394]
[1773162113550,0.2,88.51,88.481,11.30186141]
[1773162113551,0.2,88.51,88.491,3.34427394]
[1773162115242,0.2,88.51,88.492,11.30045653]
[1773162115845,3.4216695,88.509,88.482,11.30173368]
[1773162116359,3.4216695,88.499,88.47,3.92230326]
[1773162116948,3.4216695,88.506,88.48,3.92230326]
[1773162117253,3.4216695,88.506,88.481,11.30186141]
[1773162117754,14.72044099,88.506,88.481,11.30186141]
[1773162117956,3.4216695,88.505,88.481,11.30186141]
[1773162118854,3.4216695,88.489,88.46,3.92230326]
[1773162119330,3.4216695,88.489,88.464,11.30396754]
[1773162119661,3.4216695,88.497,88.471,3.31556063]
[1773162120039,3.4216695,88.497,88.464,11.30396754]
[1773162120240,3.4216695,88.504,88.471,3.31096561]
[1773162120548,3.4216695,88.499,88.47,3.92230326]
[1773162121838,3.4216695,88.499,88.472,3.30193329]
[1773162122147,3.4216695,88.506,88.48,3.92230326]
[1773162122453,3.4216695,88.506,88.481,3.30193329]
[1773162122653,0.2,88.51,88.49,3.92230326]
[1773162123234,0.2,88.51,88.489,3.30193329]
[1773162123856,0.2,88.51,88.481,14.59496869]
[1773162124171,0.2,88.51,88.473,3.29310728]
[1773162124172,3.4216695,88.509,88.473,3.29310728]
[1773162124334,3.4216695,88.509,88.413,45.2419005]
[1773162124335,3.4216695,88.489,88.463,11.30416106]
[1773162124750,3.4216695,88.489,88.45,3.92230326]
[1773162124751,3.92230326,88.47,88.429,3.29310728]
[1773162124945,1.41230171,88.508,88.43,11.3083795]
[1773162124946,3.4216695,88.459,88.43,11.3083795]
[1773162125152,1.41236554,88.504,88.43,3.92230326]
[1773162125334,3.92230326,88.48,88.441,3.72737653]
[1773162126435,3.92230326,88.48,88.421,39.58335689]
[1773162126436,39.55740909,88.479,88.438,11.30732326]
[1773162126636,39.55740909,88.479,88.421,28.27382635]
[1773162126637,3.92230326,88.47,88.434,11.30786801]
[1773162127036,39.55740909,88.479,88.441,3.72737653]
[1773162127268,11.30211688,88.479,88.441,3.72737653]
[1773162127455,11.30145367,88.485,88.461,3.72737653]
[1773162127962,3.4216695,88.487,88.461,3.72737653]
[1773162128277,14.72277059,88.487,88.461,3.72737653]
[1773162129243,3.4216695,88.495,88.47,3.92230326]
[1773162130541,0.2,88.51,88.481,3.72737653]
[1773162130838,3.4216695,88.499,88.47,3.92230326]
[1773162131445,11.2989727,88.504,88.471,11.30313888]
[1773162131963,3.4216695,88.503,88.48,3.92230326]
[1773162132775,3.4216695,88.503,88.481,11.30186141]
[1773162133276,14.91991482,88.51,88.481,11.30186141]
[1773162133558,14.91991482,88.51,88.454,56.52636038]
[1773162133559,3.4216695,88.509,88.47,3.92230326]
[1773162133860,3.4216695,88.499,88.47,3.92230326]
[1773162134578,3.4216695,88.499,88.465,11.30390549]
[1773162134946,3.4216695,88.489,88.456,11.30498876]
[1773162135162,39.54891635,88.498,88.43,3.92230326]
[1773162135163,3.4216695,88.469,88.43,3.92230326]
[1773162135343,3.92230326,88.48,88.43,3.92230326]
[1773162135344,3.4216695,88.459,88.43,3.92230326]
[1773162135669,3.4216695,88.459,88.428,11.30863527]
[1773162135959,3.4216695,88.459,88.43,3.92230326]
[1773162137463,3.4216695,88.457,88.42,3.92230326]
[1773162137656,3.4216695,88.457,88.416,28.27513484]
[1773162137657,3.4216695,88.449,88.417,11.31004218]
[1773162138543,3.4216695,88.458,88.421,2.6462921]
[1773162138744,3.4216695,88.458,88.431,2.6462921]
[1773162138947,3.4216695,88.457,88.422,2.59176251]
[1773162139567,3.4216695,88.457,88.424,2.53785925]
[1773162140378,11.30467222,88.459,88.431,2.48457511]
[1773162140586,3.40505409,88.458,88.423,42.06703668]
[1773162140752,3.40505409,88.449,88.423,11.30927473]
[1773162140950,11.30467222,88.459,88.412,11.3106818]
[1773162140951,3.40505409,88.439,88.412,11.3106818]
[1773162141687,3.40505409,88.437,88.412,11.3106818]
[1773162142051,3.40505409,88.446,88.412,13.69051767]
[1773162142856,3.40505409,88.446,88.412,11.3106818]
[1773162143877,3.40505409,88.429,88.376,2.27748888]
[1773162144083,3.40505409,88.419,88.38,6.19979214]
[1773162144450,3.92230326,88.41,88.38,3.92230326]
[1773162144654,3.40505409,88.409,88.377,39.60306414]
[1773162144876,3.40505409,88.399,88.361,11.31721008]
[1773162145259,3.40505409,88.399,88.37,3.92230326]
[1773162145654,3.40505409,88.399,88.37,10.53517665]
[1773162145976,3.40505409,88.399,88.371,11.31592943]
[1773162146650,3.40505409,88.408,88.372,2.1774795]
[1773162147074,3.40505409,88.408,88.38,12.66351133]
[1773162147282,3.40505409,88.408,88.38,10.53517665]
[1773162147480,3.40505409,88.408,88.371,39.60575301]
[1773162147657,3.40505409,88.399,88.371,39.60575301]
[1773162150078,3.40505409,88.411,88.381,1.98426122]
[1773162150266,3.40505409,88.411,88.38,10.53517665]
[1773162150267,3.40505409,88.411,88.383,1.98426122]
[1773162150802,3.40505409,88.419,88.39,10.53517665]
[1773162151155,3.40505409,88.419,88.382,39.60082369]
[1773162151156,3.40505409,88.429,88.4,10.53517665]
[1773162151362,28.26483196,88.45,88.411,1.9373357]
[1773162151363,3.40505409,88.44,88.411,1.9373357]
[1773162152081,4.16405409,88.445,88.42,10.53517665]
[1773162152277,4.16405409,88.445,88.421,11.30953054]
[1773162153160,4.16405409,88.445,88.421,39.58335689]
[1773162153360,3.40505409,88.454,88.422,1.84509543]
[1773162154061,28.25831917,88.47,88.421,39.58335689]
[1773162154062,11.30398797,88.465,88.43,10.53517665]
[1773162154358,3.40505409,88.46,88.43,10.53517665]
[1773162154567,3.40505409,88.459,88.43,10.53517665]
[1773162155484,3.40505409,88.459,88.414,3.69383402]
[1773162155485,3.40505409,88.459,88.44,10.53517665]
[1773162157081,3.40505409,88.459,88.441,11.30697301]
[1773162157683,28.25393355,88.484,88.441,11.30697301]
[1773162157684,3.40505409,88.472,88.45,10.53517665]
[1773162159391,3.40505409,88.469,88.441,11.30697301]
[1773162159770,3.40505409,88.469,88.43,10.53517665]
[1773162159971,3.40505409,88.459,88.43,10.53517665]
[1773162160200,3.40505409,88.459,88.43,50.11441725]
[1773162160500,3.40505409,88.459,88.44,10.53517665]
[1773162161009,3.40505409,88.469,88.44,10.53517665]
[1773162161293,3.40505409,88.469,88.441,39.57440553]
[1773162161495,3.40505409,88.488,88.46,10.53517665]
[1773162162077,3.40505409,88.486,88.46,10.53517665]
[1773162162585,3.40505409,88.479,88.441,39.57440553]
[1773162162889,3.40505409,88.469,88.441,11.30697301]
[1773162163503,3.40505409,88.467,88.437,11.30746754]
[1773162166297,3.40505409,88.467,88.44,10.53517665]
[1773162166501,3.40505409,88.465,88.44,10.53517665]
[1773162167694,2.72553789,88.474,88.45,3.92666527]
[1773162168809,2.72553789,88.474,88.451,11.30569467]
[1773162168995,2.72553789,88.482,88.451,39.56993136]
[1773162169204,2.61205343,88.502,88.47,3.92666527]
[1773162169504,11.29950991,88.5,88.47,3.92666527]
[1773162169713,0.2,88.51,88.49,3.92666527]
[1773162170902,0.2,88.51,88.491,11.30058424]
[1773162172399,2.81205343,88.51,88.491,11.30058424]
[1773162172607,2.81205343,88.51,88.482,12.29673443]
[1773162172783,3.92666527,88.5,88.47,3.92666527]
[1773162172987,2.61205343,88.499,88.46,3.92666527]
[1773162174092,2.61205343,88.499,88.47,3.92666527]
[1773162174295,2.61205343,88.497,88.47,3.92666527]
[1773162174503,2.61205343,88.504,88.48,3.92666527]
[1773162174706,2.61205343,88.504,88.47,3.92666527]
[1773162175091,2.61205343,88.499,88.47,3.92666527]
[1773162175590,2.61205343,88.499,88.47,3.92381028]
[1773162177508,2.61205343,88.499,88.471,11.30313888]
[1773162178610,0.2,88.51,88.49,3.92381028]
[1773162180012,2.61205343,88.508,88.48,3.92381028]
[1773162180197,11.29828605,88.509,88.461,11.30441663]
[1773162180198,2.61205343,88.499,88.461,11.30441663]
[1773162180519,2.61205343,88.487,88.451,11.30569467]
[1773162180894,2.61205343,88.479,88.451,11.30569467]
[1773162181106,2.61205343,88.469,88.451,11.30569467]
[1773162181500,2.61205343,88.487,88.46,3.92381028]
[1773162181700,2.61205343,88.487,88.451,39.56993136]
[1773162181996,2.61205343,88.469,88.442,11.30684516]
[1773162182197,2.61205343,88.469,88.442,39.57395807]
[1773162182906,2.61205343,88.478,88.45,10.51378771]
[1773162183818,2.61205343,88.478,88.442,39.57395807]
[1773162185125,2.61205343,88.469,88.442,11.30684516]
[1773162185304,2.61205343,88.459,88.43,10.51378771]
[1773162185498,10.51378771,88.49,88.45,10.51378771]
[1773162185824,11.29972132,88.498,88.46,10.51378771]
[1773162186227,10.51378771,88.49,88.433,2.71954345]
[1773162186406,10.51378771,88.49,88.45,10.51378771]
[1773162187318,10.51378771,88.49,88.451,39.56993136]
[1773162187319,11.30083965,88.489,88.451,39.56993136]
[1773162187501,2.61205343,88.488,88.451,39.56993136]
[1773162187698,2.61205343,88.488,88.46,10.51378771]
[1773162187933,2.61205343,88.488,88.451,39.56993136]
[1773162188243,2.61205343,88.479,88.451,11.30569467]
[1773162188525,2.61205343,88.478,88.45,10.51378771]
[1773162188722,2.61205343,88.478,88.44,10.51378771]
[1773162189022,2.61205343,88.478,88.44,13.23333116]
[1773162189227,2.61205343,88.478,88.441,39.57440553]
[1773162189525,2.61205343,88.476,88.45,10.51378771]
[1773162191304,2.61205343,88.484,88.453,2.71954345]
[1773162191619,2.61205343,88.494,88.47,10.51378771]
[1773162191825,2.61205343,88.502,88.471,2.71954345]
[1773162192600,2.61205343,88.489,88.46,10.51378771]
[1773162193221,2.61205343,88.489,88.461,11.30441663]
[1773162193607,2.61205343,88.498,88.47,10.51378771]
[1773162193920,2.61205343,88.498,88.461,39.56545821]
[1773162193921,2.61205343,88.498,88.48,10.51378771]
[1773162194502,2.61205343,88.498,88.471,2.71954345]
[1773162194708,2.61205343,88.509,88.48,10.51378771]
[1773162194907,2.61205343,88.509,88.481,2.71954345]
[1773162195311,0.2,88.51,88.491,11.30058424]
[1773162197817,2.81205343,88.51,88.491,9.97626117]
[1773162198219,2.81205343,88.51,88.482,11.30173368]
[1773162198717,2.61205343,88.508,88.482,11.30173368]
[1773162201534,2.09068982,88.506,88.482,11.30173368]
[1773162202032,2.09068982,88.499,88.47,10.51378771]
[1773162202331,2.09068982,88.507,88.481,2.11574497]
[1773162202919,2.09068982,88.507,88.48,10.51378771]
[1773162203134,2.09068982,88.507,88.47,10.51378771]
[1773162203346,2.09068982,88.507,88.47,12.62953268]
[1773162203527,2.09068982,88.505,88.471,11.30313888]
[1773162204838,11.29892434,88.504,88.471,11.30313888]
[1773162205026,2.09068982,88.503,88.471,11.30313888]
[1773162206454,2.09068982,88.503,88.47,10.51378771]
[1773162206455,2.09068982,88.499,88.46,10.51378771]
[1773162206627,2.09068982,88.489,88.452,11.30556686]
[1773162206822,2.09068982,88.489,88.46,10.51378771]
[1773162207022,2.09068982,88.487,88.461,11.30441663]
[1773162208543,2.09068982,88.487,88.43,3.69383402]
[1773162208544,10.51378771,88.47,88.419,13.42553132]
[1773162208727,1.73982164,88.469,88.42,2.11574497]
[1773162209036,12.2301284,88.43,88.401,11.31208922]
[1773162209343,1.71634069,88.419,88.385,2.11574497]
[1773162209645,1.71634069,88.419,88.39,10.51378771]
[1773162210347,1.71634069,88.419,88.39,12.62953268]
[1773162210928,11.30991427,88.418,88.391,11.313369]
[1773162211425,11.30991427,88.418,88.39,12.62953268]
[1773162211426,1.67018479,88.417,88.39,2.11574497]
[1773162211746,1.67018479,88.409,88.38,0.1]
[1773162212161,39.58469994,88.418,88.383,2.13989721]
[1773162212334,11.30991427,88.418,88.391,2.13989721]